bitfinex-derivatives/quotes_SOLF0:USTF0_20250110
["timestamp","ask_amount","ask_price","bid_price","bid_amount"]
[1736501221782,6.62883383,192.68,192.64,2.5957]
[1736501222177,6.62883383,192.68,192.62,6.62883383]
[1736501222980,6.62883383,192.7,192.64,6.62883383]
[1736501223378,4.52,192.71,192.62,10.34985841]
[1736501223573,4.52,192.72,192.62,10.34985841]
[1736501223876,9.71513566,192.78,192.65,10.34985841]
[1736501223877,10.34985841,192.76,192.65,10.34985841]
[1736501224180,4.52,192.74,192.66,3.1193]
[1736501225283,7.1146,192.74,192.68,2.5953]
[1736501225583,7.1146,192.74,192.66,3.1193]
[1736501225878,2.5948,192.72,192.69,2.5951]
[1736501226081,4.52,192.74,192.66,1.6212]
[1736501226976,2.5947,192.73,192.69,2.5951]
[1736501227173,4.52,192.74,192.66,1.6212]
[1736501228183,4.52,192.74,192.71,2.5949]
[1736501228682,4.52,192.74,192.66,1.6212]
[1736501228883,4.52,192.74,192.73,2.5946]
[1736501230683,10.34985841,192.76,192.75,2.5944]
[1736501230878,4.52,192.76,192.75,2.5944]
[1736501231978,10.34985841,192.79,192.67,10.34985841]
[1736501232185,4.52,192.78,192.77,2.5941]
[1736501232672,4.52,192.78,192.67,10.34985841]
[1736501233175,7.114,192.78,192.73,2.5945]
[1736501233484,7.114,192.78,192.67,10.34985841]
[1736501233885,2.5942,192.77,192.66,1.6212]
[1736501234087,10.34985841,192.76,192.66,1.6212]
[1736501234681,12.94415841,192.76,192.72,2.5947]
[1736501236585,10.34985841,192.76,192.66,1.6212]
[1736501236786,2.5945,192.75,192.66,1.6212]
[1736501238088,2.5945,192.75,192.71,2.5949]
[1736501238489,10.34985841,192.76,192.66,1.6212]
[1736501238694,4.52,192.78,192.74,2.5944]
[1736501238989,4.52,192.78,192.67,10.34985841]
[1736501239378,2.5941,192.77,192.73,2.5945]
[1736501239582,4.52,192.78,192.67,10.34985841]
[1736501240488,0.81161332,192.77,192.67,10.34985841]
[1736501241090,2.5944,192.75,192.71,2.5948]
[1736501243494,9.21527889,192.75,192.71,2.5948]
[1736501248698,2.5942,192.77,192.73,2.5945]
[1736501248892,9.21507889,192.77,192.73,2.5945]
[1736501253001,10.74725867,192.81,192.77,2.5941]
[1736501253196,10.74725867,192.81,192.73,6.62087889]
[1736501253197,6.62087889,192.79,192.66,1.5955]
[1736501253501,6.62087889,192.74,192.67,6.62087889]
[1736501254197,9.21567889,192.72,192.68,2.5953]
[1736501254502,6.62087889,192.74,192.67,6.62087889]
[1736501256199,2.5946,192.73,192.69,2.5952]
[1736501256503,6.62087889,192.72,192.66,1.5955]
[1736501256698,6.62087889,192.72,192.64,1.6269]
[1736501256699,6.62087889,192.7,192.64,6.62087889]
[1736501257305,9.21597889,192.7,192.66,2.5955]
[1736501258191,2.5951,192.7,192.66,2.5955]
[1736501261207,6.62087889,192.69,192.66,2.5955]
[1736501262106,6.62087889,192.69,192.63,8.15287889]
[1736501262908,6.62087889,192.69,192.66,2.5956]
[1736501263504,9.21607889,192.69,192.65,2.5957]
[1736501263904,6.62087889,192.67,192.58,3.1548]
[1736501264110,2.5957,192.66,192.6,6.62087889]
[1736501265010,6.62087889,192.68,192.62,6.62087889]
[1736501266816,2.5956,192.66,192.62,6.62087889]
[1736501267108,6.62087889,192.68,192.62,6.62087889]
[1736501268210,2.5955,192.67,192.63,2.596]
[1736501268709,2.5955,192.67,192.62,6.62087889]
[1736501268908,2.5955,192.67,192.64,2.5958]
[1736501271013,6.62087889,192.66,192.64,2.5958]
[1736501271212,6.62087889,192.66,192.6,6.62087889]
[1736501271513,6.62087889,192.66,192.63,2.596]
[1736501273912,6.62087889,192.66,192.64,2.5958]
[1736501274714,6.62087889,192.66,192.63,2.596]
[1736501275408,6.62087889,192.64,192.58,3.1548]
[1736501275607,6.62087889,192.64,192.58,8.16927889]
[1736501276517,2.596,192.63,192.6,2.5963]
[1736501276717,6.62087889,192.64,192.58,8.16927889]
[1736501277213,9.21677889,192.64,192.59,2.5964]
[1736501277415,9.21677889,192.64,192.58,8.16927889]
[1736501278524,9.21677889,192.64,192.61,2.5961]
[1736501279726,2.5961,192.63,192.59,2.5964]
[1736501281423,6.62087889,192.64,192.58,8.16927889]
[1736501281628,1.5287,192.69,192.58,8.16927889]
[1736501281828,6.62087889,192.65,192.58,8.16927889]
[1736501282027,2.596,192.63,192.58,2.5966]
[1736501282226,9.21687889,192.63,192.57,6.62087889]
[1736501282729,9.21687889,192.63,192.59,2.5964]
[1736501283232,2.5963,192.62,192.58,2.5966]
[1736501283433,6.62087889,192.61,192.58,2.5966]
[1736501286234,6.62087889,192.61,192.52,1.5562]
[1736501286235,4.5,192.65,192.57,6.62087889]
[1736501286429,6.62087889,192.63,192.57,6.62087889]
[1736501287729,6.62087889,192.63,192.59,2.5964]
[1736501289737,9.21697889,192.63,192.59,2.5964]
[1736501291836,6.62087889,192.62,192.59,2.5964]
[1736501292033,9.21677889,192.64,192.6,2.5963]
[1736501292234,9.21677889,192.64,192.57,6.62087889]
[1736501292235,6.62087889,192.64,192.59,6.62087889]
[1736501293038,6.62087889,192.64,192.62,2.596]
[1736501293233,4.5,192.65,192.62,2.596]
[1736501293932,9.21657889,192.66,192.62,2.596]
[1736501294637,6.62087889,192.66,192.64,2.5958]
[1736501294829,6.62087889,192.68,192.63,6.62087889]
[1736501295236,12.65365867,192.71,192.63,6.62087889]
[1736501295539,6.62087889,192.68,192.63,6.62087889]
[1736501296242,6.62087889,192.68,192.65,2.5956]
[1736501299034,6.62087889,192.66,192.59,6.62087889]
[1736501299430,6.62087889,192.62,192.53,195.0]
[1736501299633,9.21707889,192.62,192.55,6.62087889]
[1736501299840,6.62087889,192.62,192.55,6.62087889]
[1736501300241,4.5,192.64,192.6,2.5964]
[1736501300242,7.096,192.64,192.6,2.5964]
[1736501300434,4.5,192.64,192.57,6.62087889]
[1736501301134,4.5,192.64,192.61,2.5961]
[1736501303244,4.5,192.64,192.59,6.62087889]
[1736501303443,4.5,192.64,192.53,195.0]
[1736501303444,6.62087889,192.63,192.57,6.62087889]
[1736501303641,6.62087889,192.61,192.53,195.0]
[1736501303939,6.62087889,192.59,192.55,2.597]
[1736501304747,4.5,192.64,192.52,1.5562]
[1736501304748,6.62087889,192.57,192.52,1.5562]
[1736501305044,6.62087889,192.57,192.53,2.5973]
[1736501305045,9.21767889,192.57,192.53,2.5973]
[1736501305651,2.5969,192.56,192.52,2.5975]
[1736501307947,6.62087889,192.57,192.53,2.5972]
[1736501308748,9.21767889,192.57,192.53,2.5972]
[1736501310149,6.62087889,192.55,192.52,2.5975]
[1736501310345,6.62087889,192.55,192.49,6.62087889]
[1736501310749,9.21797889,192.55,192.51,2.5975]
[1736501312455,6.62087889,192.55,192.51,2.5975]
[1736501313159,8.18053132,192.63,192.54,6.62087889]
[1736501313351,8.18053132,192.63,192.62,6.62087889]
[1736501313550,143.44848978,192.66,192.62,6.62087889]
[1736501313751,150.06936867,192.66,192.56,1.4791]
[1736501313954,6.62087889,192.64,192.56,1.4791]
[1736501314156,9.21677889,192.64,192.59,2.5965]
[1736501314358,6.62087889,192.64,192.57,6.62087889]
[1736501314552,6.62087889,192.62,192.56,1.4791]
[1736501314751,2.5963,192.61,192.56,4.0759]
[1736501314950,2.5963,192.61,192.56,2.5968]
[1736501315650,6.62087889,192.6,192.56,2.5968]
[1736501316956,7.16788486,192.7,192.51,196.4791]
[1736501317160,6.62087889,192.69,192.63,6.62087889]
[1736501317362,143.44848978,192.71,192.61,10.35055571]
[1736501317658,143.44848978,192.71,192.64,2.5958]
[1736501317659,2.5949,192.71,192.64,2.5958]
[1736501317859,2.5949,192.71,192.61,10.35055571]
[1736501318955,10.35055571,192.73,192.61,10.35055571]
[1736501319555,2.5948,192.72,192.67,2.5954]
[1736501320656,12.94525571,192.73,192.62,1.6111]
[1736501320859,12.94525571,192.73,192.62,3.2359]
[1736501321063,12.94525571,192.73,192.62,4.7739]
[1736501321261,12.94525571,192.73,192.65,2.5957]
[1736501321562,12.94525571,192.73,192.62,4.7739]
[1736501321956,12.94525571,192.73,192.67,2.5954]
[1736501322259,2.5947,192.73,192.67,2.5954]
[1736501322651,2.5948,192.72,192.67,2.5954]
[1736501324959,4.64,192.74,192.62,15.12445571]
[1736501325163,2.5951,192.7,192.65,2.5957]
[1736501325959,2.5949,192.71,192.66,2.5956]
[1736501331660,2.5948,192.72,192.68,2.5953]
[1736501332066,2.5948,192.72,192.63,10.35055571]
[1736501332267,2.5948,192.72,192.67,2.5954]
[1736501336270,4.6,192.73,192.67,2.5954]
[1736501336472,2.595,192.71,192.67,2.5954]
[1736501339372,9.21861054,192.71,192.67,2.5954]
[1736501345583,2.595,192.71,192.67,2.5954]
[1736501346083,9.21861054,192.71,192.67,2.5954]
[1736501352089,4.6,192.73,192.67,6.62361054]
[1736501352385,1.64,192.75,192.67,6.62361054]
[1736501352580,9.21821054,192.74,192.69,2.5952]
[1736501352777,6.62361054,192.72,192.67,6.62361054]
[1736501353082,6.62361054,192.72,192.65,6.62361054]
[1736501354183,2.5949,192.71,192.67,2.5954]
[1736501354580,2.5949,192.71,192.65,6.62361054]
[1736501354780,6.62361054,192.72,192.67,6.62361054]
[1736501354981,6.62361054,192.74,192.67,6.62361054]
[1736501355685,9.21821054,192.74,192.7,2.595]
[1736501356487,2.5946,192.73,192.69,2.5951]
[1736501357491,2.5946,192.73,192.7,2.595]
[1736501358685,9.21811054,192.74,192.7,2.595]
[1736501358988,9.21811054,192.74,192.71,2.5949]
[1736501359189,9.21811054,192.74,192.69,6.62361054]
[1736501359689,9.21811054,192.74,192.67,6.62361054]
[1736501360193,9.21811054,192.74,192.7,2.595]
[1736501361385,9.21811054,192.74,192.65,2.5956]
[1736501361593,9.21811054,192.74,192.68,6.62361054]
[1736501362092,7.88492888,192.78,192.7,6.62361054]
[1736501362291,6.62361054,192.76,192.7,6.62361054]
[1736501362693,6.62361054,192.76,192.73,2.5945]
[1736501366692,6.62361054,192.76,192.7,6.62361054]
[1736501366893,6.62361054,192.76,192.73,2.5946]
[1736501368394,2.5941,192.77,192.7,6.62361054]
[1736501368599,9.21761054,192.78,192.72,6.62361054]
[1736501369093,9.21761054,192.78,192.73,2.5945]
[1736501369291,9.21761054,192.78,192.72,6.62361054]
[1736501369994,9.21761054,192.78,192.75,2.5943]
[1736501370189,6.62361054,192.78,192.74,6.62361054]
[1736501370694,6.62361054,192.78,192.75,2.5943]
[1736501373305,7.1337,192.8,192.76,2.5942]
[1736501373601,6.62361054,192.79,192.76,2.5942]
[1736501377195,7.1135,192.82,192.78,2.5939]
[1736501377403,6.62361054,192.81,192.78,2.5939]
[1736501379108,9.21721054,192.81,192.78,2.5939]
[1736501383008,6.62361054,192.81,192.78,2.5939]
[1736501386510,10.47802888,192.85,192.82,2.5934]
[1736501386710,8.08143888,192.86,192.82,6.62361054]
[1736501386902,0.19651,192.86,192.82,6.62361054]
[1736501387307,0.19651,192.86,192.83,2.5932]
[1736501387906,2.5929,192.87,192.83,2.5932]
[1736501394813,6.62361054,192.86,192.83,2.5932]
[1736501395518,2.5929,192.87,192.83,2.5932]
[1736501395817,9.21651054,192.87,192.83,2.5932]
[1736501396217,1.566,192.9,192.82,6.62361054]
[1736501396413,85.02,192.93,192.82,6.62361054]
[1736501396616,6.62361054,192.9,192.87,2.5926]
[1736501398513,6.62361054,192.88,192.82,1.5277]
[1736501399016,9.21631054,192.88,192.84,2.5931]
[1736501400516,6.62361054,192.86,192.79,6.62361054]
[1736501400818,6.62361054,192.84,192.78,1.5936]
[1736501401007,9.21681054,192.84,192.8,2.5936]
[1736501403019,6.62361054,192.84,192.78,1.5936]
[1736501403222,6.62361054,192.84,192.81,2.5935]
[1736501403422,6.62361054,192.86,192.79,6.62361054]
[1736501403616,2.5925,192.89,192.85,2.5929]
[1736501403915,6.62361054,192.88,192.85,2.5929]
[1736501404315,6.62361054,192.88,192.81,6.62361054]
[1736501404522,6.62361054,192.86,192.79,9.74701054]
[1736501404922,9.21681054,192.84,192.8,2.5936]
[1736501405319,6.62361054,192.84,192.79,1.5461]
[1736501405924,6.62361054,192.84,192.81,2.5935]
[1736501406623,6.62361054,192.84,192.79,1.5461]
[1736501406823,6.62361054,192.86,192.79,8.16971054]
[1736501407518,6.62361054,192.86,192.83,2.5932]
[1736501408920,6.62361054,192.84,192.79,1.5461]
[1736501409120,6.62361054,192.84,192.81,2.5935]
[1736501409316,6.62361054,192.84,192.77,6.62361054]
[1736501409821,6.62361054,192.82,192.74,1.5681]
[1736501410121,6.62361054,192.8,192.79,2.5938]
[1736501411321,6.62361054,192.82,192.81,2.5935]
[1736501411624,6.62361054,192.84,192.79,6.62361054]
[1736501412228,6.62361054,192.84,192.83,2.5933]
[1736501412526,2.5927,192.88,192.85,2.593]
[1736501412830,6.62361054,192.86,192.85,2.593]
[1736501414027,6.62361054,192.86,192.84,2.5931]
[1736501414528,6.62361054,192.86,192.82,2.5934]
[1736501414729,6.62361054,192.84,192.82,2.5934]
[1736501414923,6.62361054,192.84,192.77,6.62361054]
[1736501415126,6.62361054,192.82,192.75,6.62361054]
[1736501415830,6.62361054,192.82,192.8,2.5937]
[1736501416526,6.62361054,192.82,192.73,3.2187]
[1736501416728,6.62361054,192.8,192.73,9.84231054]
[1736501416924,6.62361054,192.8,192.73,3.2187]
[1736501417230,4.5,192.82,192.64,33.856935]
[1736501417231,6.62361054,192.76,192.74,2.5944]
[1736501418934,6.62361054,192.76,192.7,6.62361054]
[1736501419831,6.62361054,192.76,192.73,2.5946]
[1736501422029,6.62361054,192.74,192.66,1.6064]
[1736501422231,6.62361054,192.72,192.7,2.595]
[1736501422631,6.62361054,192.72,192.71,2.5949]
[1736501423638,4.5,192.75,192.71,2.5949]
[1736501423834,6.62361054,192.73,192.71,2.5949]
[1736501424336,6.62361054,192.73,192.7,2.595]
[1736501424533,6.62361054,192.71,192.7,2.595]
[1736501425136,6.62361054,192.71,192.68,2.5952]
[1736501425437,6.62361054,192.69,192.65,1.4922]
[1736501426039,6.62361054,192.69,192.67,2.5953]
[1736501427039,6.62361054,192.69,192.65,1.4922]
[1736501427236,6.62361054,192.71,192.65,1.4922]
[1736501427433,6.62361054,192.71,192.58,3.0882]
[1736501427639,6.62361054,192.69,192.63,6.62361054]
[1736501427939,4.5,192.75,192.59,1.4899]
[1736501427940,6.62361054,192.67,192.61,6.62361054]
[1736501428427,4.5,192.75,192.59,1.4899]
[1736501428428,6.62361054,192.69,192.63,6.62361054]
[1736501428940,6.62361054,192.69,192.67,2.5953]
[1736501430039,6.62361054,192.69,192.68,2.5953]
[1736501431237,2.5945,192.75,192.63,6.62361054]
[1736501431538,6.62361054,192.71,192.65,6.62361054]
[1736501431738,6.62361054,192.71,192.66,2.5955]
[1736501431939,6.62361054,192.71,192.65,6.62361054]
[1736501432139,6.62361054,192.69,192.63,6.62361054]
[1736501432939,6.62361054,192.69,192.67,2.5954]
[1736501436345,6.62361054,192.69,192.66,2.5956]
[1736501436545,6.62361054,192.67,192.66,2.5956]
[1736501438847,11.12361054,192.67,192.57,3.38969871]
[1736501439052,6.62361054,192.59,192.57,3.38969871]
[1736501439947,6.62361054,192.59,192.54,47.07804576]
[1736501440154,6.62361054,192.59,192.58,2.5967]
[1736501440453,6.62361054,192.59,192.51,9.73021054]
[1736501440649,6.62361054,192.56,192.51,3.1066]
[1736501441254,6.62361054,192.54,192.48,1.5736]
[1736501441448,6.62361054,192.54,192.53,2.5973]
[1736501441753,6.62361054,192.54,192.48,8.19721054]
[1736501443154,6.62361054,192.54,192.52,2.5974]
[1736501443553,6.62361054,192.54,192.44,3.1395]
[1736501443756,4.5,192.53,192.48,2.598]
[1736501443954,6.62361054,192.49,192.44,1.5184]
[1736501444257,6.62361054,192.49,192.47,2.5981]
[1736501444457,6.62361054,192.49,192.44,8.14201054]
[1736501444652,4.5,192.53,192.52,2.5975]
[1736501445349,4.5,192.53,192.46,6.62361054]
[1736501445650,6.62361054,192.52,192.46,6.62361054]
[1736501445953,6.62361054,192.5,192.44,8.14201054]
[1736501446454,6.62361054,192.48,192.42,2.5988]
[1736501446651,6.62361054,192.48,192.4,1.5134]
[1736501446851,6.62361054,192.46,192.4,1.5134]
[1736501447155,6.62361054,192.46,192.41,6.62361054]
[1736501447954,2.5976,192.51,192.4,1.5134]
[1736501447955,6.62361054,192.44,192.4,1.5134]
[1736501448156,6.62361054,192.44,192.38,8.10411054]
[1736501448456,6.62361054,192.44,192.39,2.5991]
[1736501448656,6.62361054,192.44,192.38,8.10411054]
[1736501449157,2.598,192.48,192.38,8.10411054]
[1736501449354,2.5979,192.49,192.4,6.62361054]
[1736501449548,3.091,192.52,192.42,6.62361054]
[1736501449754,6.62361054,192.49,192.42,6.62361054]
[1736501451155,6.62361054,192.49,192.48,2.598]
[1736501451358,6.62361054,192.52,192.46,6.62361054]
[1736501452059,4.52,192.57,192.39,4.52]
[1736501452248,1.4866,192.61,192.5,6.62361054]
[1736501452448,6.62361054,192.58,192.52,6.62361054]
[1736501452653,6.62361054,192.58,192.57,2.5968]
[1736501452848,6.62361054,192.58,192.41,200.1979]
[1736501453055,6.62361054,192.55,192.48,6.62361054]
[1736501453255,10.36562931,192.57,192.46,10.36562931]
[1736501453461,10.36562931,192.57,192.47,1.5335]
[1736501453661,10.36562931,192.57,192.47,3.1605]
[1736501454160,10.36562931,192.57,192.53,2.5973]
[1736501454349,10.36562931,192.57,192.47,3.1605]
[1736501454553,10.36562931,192.54,192.47,3.1605]
[1736501454750,10.36562931,192.54,192.4,10.36562931]
[1736501455053,10.36562931,192.51,192.4,10.36562931]
[1736501455261,10.36562931,192.51,192.46,2.5982]
[1736501455656,10.36562931,192.51,192.38,7.6805]
[1736501455657,10.36562931,192.48,192.38,3.1605]
[1736501456752,10.36562931,192.48,192.44,2.5984]
[1736501457866,10.36562931,192.48,192.38,3.1605]
[1736501459458,10.36562931,192.48,192.46,2.5982]
[1736501460464,10.36562931,192.48,192.38,3.1605]
[1736501460667,10.36562931,192.48,192.45,2.5984]
[1736501462163,10.36562931,192.48,192.38,3.1605]
[1736501462365,14.88562931,192.51,192.39,10.36562931]
[1736501462863,14.88562931,192.51,192.48,2.5979]
[1736501465061,14.88562931,192.51,192.39,10.36562931]
[1736501465658,10.36562931,192.54,192.42,10.36562931]
[1736501465860,16.52742931,192.57,192.45,10.36562931]
[1736501466158,16.52742931,192.57,192.46,1.5662]
[1736501466355,19.12432931,192.57,192.49,2.5978]
[1736501466558,19.12432931,192.57,192.46,1.5662]
[1736501466958,16.52742931,192.57,192.46,1.5662]
[1736501467562,4.52,192.57,192.56,2.5969]
[1736501467764,10.36562931,192.58,192.48,10.36562931]
[1736501468261,10.36562931,192.58,192.57,2.5968]
[1736501468968,10.36562931,192.58,192.56,2.5969]
[1736501469766,10.36562931,192.58,192.57,2.5968]
[1736501470276,10.36562931,192.61,192.48,10.36562931]
[1736501471369,10.36562931,192.61,192.57,2.5967]
[1736501473266,10.36562931,192.61,192.58,2.5966]
[1736501473761,10.36562931,192.61,192.48,10.36562931]
[1736501473967,10.36562931,192.61,192.47,202.7186]
[1736501473968,14.88562931,192.64,192.51,10.36562931]
[1736501474472,14.88562931,192.64,192.61,2.5962]
[1736501474674,10.36562931,192.64,192.61,2.5962]
[1736501475972,10.36562931,192.64,192.51,10.36562931]
[1736501476669,10.36562931,192.64,192.54,2.5971]
[1736501476876,10.36562931,192.64,192.55,1.5879]
[1736501477775,10.36562931,192.64,192.62,2.596]
[1736501478979,10.36562931,192.64,192.58,2.5966]
[1736501479180,10.36562931,192.64,192.56,1.5229]
[1736501480175,12.96152931,192.64,192.6,2.5963]
[1736501480880,10.36562931,192.61,192.51,205.36562931]
[1736501481074,10.36562931,192.61,192.51,195.0]
[1736501481276,10.36562931,192.58,192.48,13.49452931]
[1736501481875,10.36562931,192.58,192.48,3.1289]
[1736501482677,12.96232931,192.58,192.54,2.5971]
[1736501483071,10.36562931,192.58,192.48,3.1289]
[1736501484879,2.5968,192.57,192.53,2.5972]
[1736501485678,10.36562931,192.55,192.52,2.5974]
[1736501486280,10.36562931,192.55,192.48,3.1289]
[1736501486491,12.96272931,192.55,192.5,2.5976]
[1736501486682,10.36562931,192.55,192.5,2.5976]
[1736501486985,12.96322931,192.52,192.45,3.60135069]
[1736501487683,12.96322931,192.52,192.47,2.5981]
[1736501488282,12.96322931,192.52,192.45,3.60135069]
[1736501488585,12.96322931,192.52,192.48,2.598]
[1736501489288,10.36562931,192.52,192.48,2.598]
[1736501490188,10.36562931,192.52,192.49,2.5978]
[1736501492487,10.36562931,192.52,192.51,2.5976]
[1736501492880,7.589,192.58,192.45,13.96698]
[1736501493078,12.96252931,192.57,192.53,2.5972]
[1736501494080,12.96252931,192.57,192.45,3.60135069]
[1736501494081,10.36562931,192.57,192.45,3.60135069]
[1736501494288,10.36562931,192.54,192.45,3.60135069]
[1736501494786,12.96292931,192.54,192.49,2.5977]
[1736501494986,10.36562931,192.54,192.45,3.60135069]
[1736501495380,10.36562931,192.54,192.5,2.5976]
[1736501497089,12.96282931,192.54,192.5,2.5976]
[1736501500584,10.36562931,192.54,192.45,3.60135069]
[1736501500783,2.5971,192.56,192.45,3.60135069]
[1736501501396,2.5971,192.56,192.48,2.598]
[1736501501587,2.5971,192.56,192.45,3.60135069]
[1736501501789,10.36562931,192.57,192.45,3.60135069]
[1736501501990,10.36562931,192.6,192.56,2.5969]
[1736501502586,10.36562931,192.6,192.5,10.36562931]
[1736501502792,4.52,192.63,192.51,1.6206]
[1736501502993,14.88562931,192.63,192.51,4.8368]
[1736501503787,17.48162931,192.63,192.51,4.8368]
[1736501503995,12.96162931,192.63,192.51,4.8368]
[1736501504395,12.96162931,192.63,192.58,2.5965]
[1736501504893,10.36562931,192.63,192.58,2.5965]
[1736501505093,2.5962,192.62,192.58,2.5965]
[1736501507795,2.5963,192.61,192.57,2.5968]
[1736501507994,2.5963,192.61,192.51,4.8368]
[1736501508394,10.36562931,192.63,192.51,4.8368]
[1736501508597,2.5962,192.62,192.58,2.5966]
[1736501508798,2.5962,192.62,192.51,4.8368]
[1736501511101,2.5962,192.62,192.58,2.5966]
[1736501511304,10.36562931,192.63,192.51,4.8368]
[1736501511602,2.5963,192.61,192.51,4.8368]
[1736501512399,2.5963,192.61,192.57,2.5967]
[1736501512901,2.5961,192.62,192.58,2.5966]
[1736501513303,6.63133641,192.59,192.58,2.5966]
[1736501514699,2.596,192.63,192.6,2.5964]
[1736501514902,6.63133641,192.61,192.6,2.5964]
[1736501515106,4.52,192.64,192.54,6.63133641]
[1736501515408,4.52,192.64,192.61,2.5962]
[1736501515909,4.1267,192.65,192.56,6.63133641]
[1736501515910,1.5308,192.65,192.56,6.63133641]
[1736501516303,2.5956,192.66,192.56,6.63133641]
[1736501516605,6.63133641,192.63,192.62,2.5961]
[1736501522708,6.63133641,192.63,192.54,6.63133641]
[1736501522908,6.63133641,192.61,192.54,6.63133641]
[1736501523610,3.1467,192.69,192.56,6.63133641]
[1736501523810,6.63133641,192.65,192.58,6.63133641]
[1736501524214,6.63133641,192.66,192.61,2.5962]
[1736501524417,6.63133641,192.66,192.6,6.63133641]
[1736501524909,6.63133641,192.66,192.65,2.5957]
[1736501526308,6.63133641,192.66,192.58,6.63133641]
[1736501526508,6.63133641,192.64,192.53,4.5]
[1736501526713,6.63133641,192.64,192.56,6.63133641]
[1736501526912,6.63133641,192.62,192.56,6.63133641]
[1736501528015,6.63133641,192.62,192.6,2.5963]
[1736501528213,6.63133641,192.62,192.51,199.8368]
[1736501528413,6.63133641,192.59,192.53,6.63133641]
[1736501529908,6.63133641,192.59,192.58,2.5967]
[1736501531316,4.5,192.64,192.57,2.5967]
[1736501531515,6.63133641,192.61,192.55,6.63133641]
[1736501532310,6.63133641,192.63,192.62,2.5961]
[1736501533709,6.63133641,192.63,192.51,199.8368]
[1736501533915,6.63133641,192.59,192.54,6.63133641]
[1736501534412,6.63133641,192.59,192.51,199.8368]
[1736501534618,6.63133641,192.59,192.52,6.63133641]
[1736501535019,6.63133641,192.57,192.52,6.63133641]
[1736501535218,6.63133641,192.57,192.51,4.8368]
[1736501535423,6.63133641,192.53,192.48,43.77702701]
[1736501536013,6.63133641,192.53,192.52,2.5975]
[1736501537323,12.96311147,192.57,192.52,2.5975]
[1736501537522,2.5971,192.56,192.51,2.5976]
[1736501537714,2.5971,192.56,192.48,43.77702701]
[1736501537715,10.36621147,192.54,192.48,43.77702701]
[1736501537915,10.36621147,192.54,192.51,2.5975]
[1736501539121,4.1903,192.56,192.52,2.5974]
[1736501539822,2.5971,192.55,192.5,2.5976]
[1736501540028,1.5934,192.56,192.48,43.77702701]
[1736501540223,2.5974,192.53,192.48,46.37492701]
[1736501540525,2.5974,192.53,192.48,43.77702701]
[1736501541019,10.36621147,192.51,192.45,3.60135069]
[1736501541923,10.36621147,192.51,192.48,2.598]
[1736501542124,3.1232,192.55,192.45,3.60135069]
[1736501542125,10.36621147,192.54,192.45,3.60135069]
[1736501542322,14.86621147,192.54,192.45,3.60135069]
[1736501542624,2.5974,192.53,192.42,10.36621147]
[1736501542825,14.86621147,192.54,192.42,10.36621147]
[1736501543026,10.36621147,192.51,192.39,13.40331147]
[1736501543226,12.96381147,192.51,192.39,13.40331147]
[1736501543529,12.96381147,192.51,192.47,2.5981]
[1736501544227,12.96381147,192.51,192.46,2.5983]
[1736501544723,2.5978,192.5,192.45,2.5984]
[1736501544927,10.36621147,192.51,192.39,13.40331147]
[1736501545327,12.96381147,192.51,192.39,13.40331147]
[1736501545828,12.96381147,192.51,192.46,2.5982]
[1736501546832,10.36621147,192.48,192.44,2.5984]
[1736501547327,10.36621147,192.48,192.39,3.0371]
[1736501547526,2.5982,192.47,192.42,2.5987]
[1736501547727,10.36621147,192.48,192.39,3.0371]
[1736501549428,10.36621147,192.48,192.45,2.5983]
[1736501550332,10.36621147,192.48,192.46,2.5982]
[1736501551231,10.36621147,192.51,192.39,13.40331147]
[1736501551437,10.36621147,192.51,192.48,2.5979]
[1736501551828,10.36621147,192.51,192.39,13.40331147]
[1736501552732,12.96381147,192.51,192.39,13.40331147]
[1736501552934,10.36621147,192.51,192.39,13.40331147]
[1736501553232,10.36621147,192.51,192.42,2.5987]
[1736501553424,10.36621147,192.54,192.42,10.36621147]
[1736501554435,10.36621147,192.54,192.5,2.5976]
[1736501554637,10.36621147,192.54,192.42,10.36621147]
[1736501555039,10.36621147,192.54,192.51,2.5975]
[1736501555930,10.36621147,192.54,192.52,2.5975]
[1736501556331,1.5934,192.56,192.45,10.36621147]
[1736501556526,10.36621147,192.57,192.46,1.5567]
[1736501556731,10.36621147,192.57,192.47,1.5977]
[1736501557435,6.63425755,192.54,192.53,2.5973]
[1736501559239,6.63425755,192.56,192.55,2.597]